Cogmind - Beta 12 @@@ ROGUE MODE // 2023.04.01 @ 21:57:23 Player: Plexion Result: Destroyed by as-28242 with Assembled Blade Performance ------------- Evolutions (4) 2000 Regions Visited (16) 3200 Robots Destroyed (220) 1100 Value Destroyed (10174) 10174 Prototype IDs (28) 560 Alien Tech Used (0) 0 Bonus (6805) 6805 TOTAL SCORE: 23839 Bonus ------- High Alert Combat Kills 1881 Follower Combat Kills 1269 Entered Garrisons 1200 Used RIF Installer 2500 Aligned with FarCom 300 Friendly Fire -345 Cogmind --------- Core Integrity 0/850 Matter 66/300 Energy 5/100 System Corruption 10% Temperature Cool (24) Movement Core (1400) Ox27 Location -6/Garrison Parts ------- > --- POWER (1) -------- (None) > --- PROPULSION (4) --- (None) > --- UTILITY (8) ------ Advanced Heat Sink Huge Storage Unit Advanced Transmission Jammer Relay Coupler [Grunt] (5) > --- WEAPON (2) ------- (None) > --- INVENTORY (25) --- High-capacity Storage Unit Relay Coupler [NC] (28) Relay Coupler [NC] (33) Relay Coupler [NC] (30) Relay Coupler [Swarmer] (34) Relay Coupler [Grunt] (30) Relay Coupler [Brawler] (23) Relay Coupler [Heavy] (14) Relay Coupler [Behemoth] (10) Relay Coupler [Behemoth] (11) Long-range Tractor Beam Precision Assault Rifle Heavy Mass Driver Improved Remote Datajack Peak State ------------ > --- POWER ------------ Antimatter Reactor > --- PROPULSION ------- Improved Heavy Treads Armored Huge Wheel > --- UTILITY ---------- Huge Storage Unit Advanced Targeting Computer Layered Heavy Armor Plating Advanced Hardlight Generator Relay Coupler [NC] > --- WEAPON ----------- AWS/Gauss > --- INVENTORY -------- Advanced Treads Advanced Treads Advanced Treads Advanced Treads High-capacity Storage Unit Advanced Transmission Jammer Hardened Heavy Armor Plating Improved Medium Armor Plating Improved Medium Armor Plating Relay Coupler [NC] Relay Coupler [Hunter] Relay Coupler [Behemoth] Long-range Tractor Beam Chronowheel Guided Plasma Cannon Precision Assault Rifle Heavy Mass Driver Precision Grenade Launcher Precision Grenade Launcher Remote Datajack Improved Remote Datajack Axe [Rating: 80] Favorites ----------- Power Antimatter Reactor Engine Ion Engine Power Core Nuclear Core Reactor Antimatter Reactor Propulsion Light Treads Treads Light Treads Wheel Armored Huge Wheel Utility High-capacity Storage Unit Device Advanced Hardlight Generator Storage High-capacity Storage Unit Processor Advanced Targeting Computer Hackware Hacking Suite Protection Layered Heavy Armor Plating Weapon Axe Energy Gun Medium Laser Energy Cannon Light EM Pulse Cannon Ballistic Gun Gauss Rifle Ballistic Cannon Heavy Mass Driver Launcher Precision Grenade Launcher Special Weapon Remote Datajack Slashing Weapon Axe Build | -11 -10 -10 -10 -9 -8 -8 -8 -8 -7 -7 -7 -7 -7 -7 -6 -6 ------- Run | Jun Mat Min Exi Min Mat Gar Mat Gar Fac Gar Fac Gar Fac Gar Fac Gar Slots Evolved 8 | . . . . . 4 . . . 2 . . . . . 2 . Power . | . . . . . . . . . . . . . . . . . Propulsion 2 | . . . . . 2 . . . . . . . . . . . Utility 6 | . . . . . 2 . . . 2 . . . . . 2 . Weapon . | . . . . . . . . . . . . . . . . . Parts Attached 303 | 7 . . 1 5 29 27 18 30 15 35 10 35 24 31 1 35 Power 12 | 2 . . . 1 2 . 1 1 . 1 . 2 . 1 . 1 Engine 6 | 2 . . . 1 1 . 1 . . . . . . . . 1 Core 3 | . . . . . 1 . . 1 . 1 . . . . . . Reactor 3 | . . . . . . . . . . . . 2 . 1 . . Propulsion 34 | 2 . . . 2 5 4 6 2 6 . . 2 1 . . 4 Treads 33 | 2 . . . 2 5 4 6 2 6 . . 2 . . . 4 Leg . | . . . . . . . . . . . . . . . . . Wheel 1 | . . . . . . . . . . . . . 1 . . . Hover . | . . . . . . . . . . . . . . . . . Flight . | . . . . . . . . . . . . . . . . . Utility 92 | 1 . . 1 . 10 3 2 12 5 13 2 8 7 10 1 17 Device 25 | . . . . . 1 . . 1 1 2 1 5 1 4 . 9 Storage 5 | 1 . . 1 . 1 . 1 . 1 . . . . . . . Processor 3 | . . . . . 1 1 . . 1 . . . . . . . Hackware 20 | . . . . . . 1 . 4 1 4 1 2 2 2 1 2 Protection 39 | . . . . . 7 1 1 7 1 7 . 1 4 4 . 6 Artifact . | . . . . . . . . . . . . . . . . . Weapon 165 | 2 . . . 2 12 20 9 15 4 21 8 23 16 20 . 13 Energy Gun 5 | 1 . . . . 3 . . . . . . . 1 . . . Energy Cannon 7 | . . . . 1 2 . . . . 1 . . . 1 . 2 Ballistic Gun 41 | 1 . . . . 4 8 7 5 1 5 2 2 4 1 . 1 Ballistic Cannon 24 | . . . . . . . . . . 4 2 7 4 7 . . Launcher 24 | . . . . 1 . 3 . 2 . 2 1 3 2 4 . 6 Special Weapon 30 | . . . . . . 3 . 4 2 4 1 6 4 3 . 3 Impact Weapon . | . . . . . . . . . . . . . . . . . Slashing Weapon 34 | . . . . . 3 6 2 4 1 5 2 5 1 4 . 1 Piercing Weapon . | . . . . . . . . . . . . . . . . . Special Melee Weapon . | . . . . . . . . . . . . . . . . . Unidentified Prototypes 4 | . . . . . 1 . 1 . . . 1 . 1 . . . Corrupted Parts 1 | . . . . . . . . . . . . . . . . 1 System Corruption 10 | . . . . . . . . . . . . . . . . 10 Parts Lost 39 | . . . . 5 4 5 . 1 . 1 . . . . . 23 Power 5 | . . . . 1 . 1 . 1 . . . . . . . 2 Propulsion 14 | . . . . 2 2 4 . . . . . . . . . 6 Utility 11 | . . . . . . . . . . 1 . . . . . 10 Weapon 9 | . . . . 2 2 . . . . . . . . . . 5 Highest Loss Streak 16 | . . . . 4 2 2 . 1 . 1 . . . . . 16 To Critical Strikes . | . . . . . . . . . . . . . . . . . Average Slot Usage (%) 85 | . 85 85 85 83 90 85 88 97 99 92 85 80 76 68 70 83 Engine 4 | . 14 14 14 14 7 . 8 5 . . . . . . . 1 Core 2 | . . . . . 1 7 . 2 7 7 7 1 . . . . Reactor 1 | . . . . . . . . . . . . 5 7 7 6 4 Treads 26 | . 28 28 28 27 26 34 35 36 30 30 30 24 18 7 6 11 Wheel 1 | . . . . . . . . . . . . . 2 7 6 5 Device 2 | . . . . . . . . . 6 . 1 7 8 7 6 6 Storage 9 | . 14 14 14 14 10 9 9 9 7 7 7 7 7 7 6 6 Processor 4 | . . . . . 9 2 . . 7 7 7 7 7 7 6 6 Hackware 7 | . . . . . . 6 9 16 14 16 10 7 5 4 10 13 Protection 7 | . . . . . 16 9 9 8 7 8 7 7 6 6 6 11 Energy Gun 2 | . 14 14 14 12 4 . . . . . . . . . . . Ballistic Gun 8 | . 14 14 14 12 9 12 15 13 8 2 1 2 2 . . . Special Weapon 1 | . . . . . . . . 1 1 2 . 1 3 1 6 2 Slashing Weapon 2 | . . . . . . 3 2 3 3 3 4 3 2 2 6 4 Naked Turns . | . . . . . . . . . . . . . . . . . Heaviest Build 147 | 14 14 14 49 47 64 75 75 75 101 141 142 147 146 147 123 135 Greatest Support 119 | 40 40 40 40 40 80 80 80 80 94 94 94 119 119 75 75 75 Greatest Overweight (x) 5 | . . . 1 1 3 1 1 . 1 1 1 1 5 5 4 4 Average Overweight (x) . | . . . . 1 . . . . . 1 1 1 2 3 3 3 Largest Inventory Capacity 25 | 8 8 8 20 20 20 20 20 20 25 25 25 25 25 25 25 25 Average Capacity 20 | 7 8 8 15 20 20 20 20 20 24 25 25 25 25 25 25 25 Most Carried 25 | 2 6 8 14 16 20 20 20 20 25 25 25 25 25 25 24 25 Average Carried 18 | 1 3 7 10 14 16 19 19 19 21 24 24 24 22 22 22 21 Final Capacity 25 | 8 8 8 20 20 20 20 20 20 25 25 25 25 25 25 25 25 Final Carried 25 | 2 6 8 14 13 20 19 19 20 25 25 25 23 20 23 24 15 Class Distribution -------------------- 36% | Mutant 33% | Bothacker-Mutant 20% | Scavenger-Mutant 9% | Botlord-Mutant Dominant Class ---------------- Mutant | -10/Materials Mutant | -10/Mines Mutant | -10/Exiles Mutant | -9/Mines Scavenger-Mutant | -8/Materials Mutant | -8/Garrison Scavenger-Mutant | -8/Materials Scavenger-Mutant | -8/Garrison Bothacker-Mutant | -7/Factory Bothacker-Mutant | -7/Garrison Bothacker-Mutant | -7/Factory Bothacker-Mutant | -7/Garrison Bothacker-Mutant | -7/Factory Bothacker-Mutant | -7/Garrison Botlord-Mutant | -6/Factory Botlord-Mutant | -6/Garrison Resources | -11 -10 -10 -10 -9 -8 -8 -8 -8 -7 -7 -7 -7 -7 -7 -6 -6 ----------- Run | Jun Mat Min Exi Min Mat Gar Mat Gar Fac Gar Fac Gar Fac Gar Fac Gar Matter Collected 7333 | 155 282 49 20 83 452 1059 341 618 168 546 342 908 536 715 . 1059 Remotely 1550 | . . . . . . . . 41 . 73 . 322 97 241 . 776 Salvage Created 7665 | . 690 134 . 122 1067 1189 446 319 169 198 194 541 1215 390 . 991 Parts 408 | . 31 9 . 10 51 70 23 16 11 11 4 35 82 16 . 39 Haulers Intercepted 5 | . 2 . . . 2 . 1 . . . . . . . . . Recyclers Shooed 5 | . 2 . . . 1 . . . . . 1 . 1 . . . Parts Field Recycled . | . . . . . . . . . . . . . . . . . Retrieved Matter . | . . . . . . . . . . . . . . . . . Parts Self-Destructed . | . . . . . . . . . . . . . . . . . Prevented . | . . . . . . . . . . . . . . . . . Kills | -11 -10 -10 -10 -9 -8 -8 -8 -8 -7 -7 -7 -7 -7 -7 -6 -6 ------- Run | Jun Mat Min Exi Min Mat Gar Mat Gar Fac Gar Fac Gar Fac Gar Fac Gar Combat Hostiles Destroyed 229 | . 12 5 . 6 15 34 7 13 3 7 2 23 21 15 . 66 Melee 11 | . . . . . . 1 . . 1 2 . 2 . . . 5 Guns 87 | . 12 5 . 3 7 24 7 6 2 . . 5 16 . . . Cannons 30 | . . . . 1 6 . . . . 2 2 7 1 8 . 3 AOE 95 | . . . . 2 1 9 . 7 . 3 . 9 4 7 . 53 Classes Destroyed 18 | . 6 . . 1 3 3 2 1 . . . . . . . 2 Worker 10 | . 2 . . 1 3 . 3 . . . . . 1 . . . Builder 5 | . . . . . . . 1 . . . . . 4 . . . Tunneler 4 | . . . . . . . 1 . 1 . . . 2 . . . Hauler 5 | . 2 . . . 2 . 1 . . . . . . . . . Recycler 4 | . 1 . . . . . . . . . 2 . 1 . . . Operator 1 | . 1 . . . . . . . . . . . . . . . Watcher 4 | . . . . . 1 1 . . . . . . 2 . . . Swarmer 60 | . 3 3 . 3 . 11 2 7 1 3 . 13 4 2 . 8 Cutter 5 | . . . . . . 3 . . . . . 2 . . . . Saboteur 1 | . . . . . . . . . . . . . . . . 1 Grunt 78 | . 9 2 . 2 8 14 2 5 . . . 5 9 13 . 9 Brawler 3 | . . . . . 1 . 1 . 1 . . . . . . . Duelist 5 | . . . . . . . . 1 . . . 2 2 . . . Sentry 24 | . . . . . 6 3 2 . 1 3 1 2 3 . . 3 Specialist 2 | . . . . . . . . . . . . . . . . 2 Hunter 1 | . . . . . . 1 . . . . . . . . . . Programmer 8 | . . . . . . 3 . . . 1 1 . 3 . . . Assembled 44 | . . . . 1 . . . . . . . . . . . 43 Best Kill Streak 37 | . 4 3 . 3 3 6 4 4 2 3 2 4 5 4 . 37 Combat Bots Only 37 | . 2 3 . 3 3 6 4 4 2 3 1 4 3 4 . 37 Max Kills in Single Turn 4 | . 1 1 . 2 1 3 3 2 1 1 1 3 2 2 . 4 Gunslinging 1 | . . . . . . 1 1 . . . . . . . . . Exploded 4 | . . . . 2 1 3 . 2 . 1 . 3 1 2 . 4 Melee 1 | . . . . . . 1 . . 1 1 . 1 . . . 1 Uniques/NPCs Destroyed . | . . . . . . . . . . . . . . . . . Combat | -11 -10 -10 -10 -9 -8 -8 -8 -8 -7 -7 -7 -7 -7 -7 -6 -6 -------- Run | Jun Mat Min Exi Min Mat Gar Mat Gar Fac Gar Fac Gar Fac Gar Fac Gar Damage Taken 11424 | . 220 285 . 356 1157 1840 180 424 212 240 115 1117 490 467 . 4321 Core 1594 | . 53 51 . 99 170 92 . 17 21 5 21 143 33 14 . 875 Absorbed by Shields 1324 | . . . . . . . . . . . . 545 378 346 . 55 Reduced by Siege Mode 13 | . . . . . . . . . . . . . . 13 . . Regen/Repaired (Parts) 641 | . . . . . 81 . . . . . . . 560 . . . Core Remaining (%) 58 | 100 . . . 18 . . . 49 . . . . . 66 . . Volleys Fired 612 | . 58 15 . 12 87 95 17 38 10 29 16 71 15 45 . 104 Largest 2 | . 2 2 . 2 2 2 2 2 2 1 1 1 1 1 . 1 Hottest 120 | . 70 70 . 70 106 56 56 56 56 120 75 75 75 120 . 75 Shots Fired 970 | . 114 30 . 20 137 172 34 58 16 29 17 74 119 46 . 104 Gun 622 | . 114 30 . 16 97 159 34 43 12 2 2 8 104 . . 1 Cannon 172 | . . . . 2 40 . . . . 10 14 41 5 27 . 33 Launcher 93 | . . . . 2 . 6 . 5 . 3 . 7 4 13 . 53 Special 83 | . . . . . . 7 . 10 4 14 1 18 6 6 . 17 Kinetic 600 | . 58 15 . 8 62 159 34 43 12 11 16 49 109 23 . 1 Thermal 119 | . 56 15 . 8 35 . . . . 1 . . . 4 . . Explosive 93 | . . . . 2 . 6 . 5 . 3 . 7 4 13 . 53 Electromagnetic 75 | . . . . 2 40 . . . . . . . . . . 33 Robot Hit Streak 23 | . 9 8 . 4 11 13 11 7 9 11 15 15 23 20 . 22 Robot Miss Streak 6 | . 6 3 . 2 4 6 3 3 3 1 3 3 3 3 . 3 Penetration Max 1 | . . . . . . 1 1 . . . . . . . . . Secondary Targets 10 | . . 2 . 1 . 4 1 1 1 . . . . . . . Max Gunslinging Chain 1 | . . 1 . 1 . 1 1 1 1 . . . . . . . Autonomous 107 | . . . . . . . . . . . . 2 105 . . . Shots Hit Robots 672 | . 71 21 . 12 99 111 25 41 16 22 15 46 99 31 . 63 Core Hits 390 | . 30 8 . 7 38 57 15 20 4 9 3 24 51 26 . 98 Critical Kills 6 | . 1 . . . . 3 . . . . . . 2 . . . Critical Parts Destroyed 1 | . . . . . . . . 1 . . . . . . . . Critical Strikes 29 | . 5 1 . 1 4 4 . 1 . 1 3 3 3 1 . 2 Burn 9 | . 4 1 . 1 3 . . . . . . . . . . . Destroy 8 | . 1 . . . . 3 . 1 . . . . 3 . . . Blast 7 | . . . . . . . . . . 1 3 2 . 1 . . Corrupt 3 | . . . . . 1 . . . . . . . . . . 2 Sever 2 | . . . . . . 1 . . . . . 1 . . . . Melee Attacks 141 | . . . . . 9 32 9 17 4 17 2 18 5 8 . 20 Impact . | . . . . . . . . . . . . . . . . . Slashing 141 | . . . . . 9 32 9 17 4 17 2 18 5 8 . 20 Piercing . | . . . . . . . . . . . . . . . . . Sneak Attacks 24 | . . . . . 2 . 5 1 4 3 2 2 3 . . 2 Combat Hostiles 9 | . . . . . . . . 1 3 3 . . . . . 2 Follow-up Attacks . | . . . . . . . . . . . . . . . . . Damage Inflicted 26175 | . 946 288 . 353 1960 2971 962 1520 519 905 955 2565 3746 2775 5 5705 Guns 8846 | . 946 288 . 128 968 2298 503 598 195 39 23 162 2698 . . . Cannons 5560 | . . . . 20 772 . . . . 315 805 1367 304 1146 . 831 Explosions 8956 | . . . . 187 79 605 . 864 . 273 . 801 460 1309 . 4378 Melee 2684 | . . . . . 125 68 429 58 308 278 127 235 254 320 . 482 Ramming 129 | . . . . 18 16 . 30 . 16 . . . 30 . 5 14 Kinetic 11697 | . 518 128 . 63 678 2298 503 598 195 354 828 1529 3002 1003 . . Thermal 1213 | . 428 160 . 65 369 . . . . . . . . 143 . 48 Explosive 8703 | . . . . 187 . 605 . 864 . 273 . 801 334 1309 . 4330 Electromagnetic 1749 | . . . . 20 772 . . . . . . . 126 . . 831 Impact . | . . . . . . . . . . . . . . . . . Slashing 2684 | . . . . . 125 68 429 58 308 278 127 235 254 320 . 482 Piercing . | . . . . . . . . . . . . . . . . . Highest Corruption 10 | . . . . . . 3 3 3 . . 3 3 4 4 . 10 Average Corruption 3 | . . . . . . 2 3 3 . . 2 3 3 4 . 10 Corruption Purged . | . . . . . . . . . . . . . . . . . Corruption Blocked . | . . . . . . . . . . . . . . . . . Effects 158 | . . . . . . 26 26 19 . . 2 23 27 26 . 9 Message Errors 43 | . . . . . . 7 9 7 . . 1 4 8 2 . 5 Matter Fused 47 | . . . . . . 9 4 3 . . . 9 8 11 . 3 Heat Flow Errors 16 | . . . . . . 4 1 2 . . . . 4 5 . . Energy Discharges 14 | . . . . . . 2 4 2 . . . 3 2 1 . . Parts Rejected 5 | . . . . . . . 1 . . . . 2 1 1 . . Parts Fused 2 | . . . . . . . . . . . . 2 . . . . Data Loss (minor) 16 | . . . . . . 3 3 2 . . . 2 1 4 . 1 Data Loss (major) 6 | . . . . . . . 2 . . . . . 3 1 . . Misfires 8 | . . . . . . 1 2 2 . . 1 1 . 1 . . Alerts 1 | . . . . . . . . 1 . . . . . . . . Overload Shots . | . . . . . . . . . . . . . . . . . Overflow Damage 1339 | . . . . 55 45 18 131 78 63 . 204 198 114 213 . 220 Projectiles 455 | . . . . . . . . . . . 137 129 . 165 . 24 Explosions 358 | . . . . 55 . 18 . 78 . . . 64 . 12 . 131 Melee 526 | . . . . . 45 . 131 . 63 . 67 5 114 36 . 65 Knockbacks 17 | . . . . . 1 . 1 . . . 2 7 . 5 1 . Impact 3 | . . . . . 1 . 1 . . . . . . . 1 . Kinetic 14 | . . . . . . . . . . . 2 7 . 5 . . Secondary . | . . . . . . . . . . . . . . . . . Self-Inflicted Damage 849 | . . . . 39 39 174 . . . . . 160 . 77 . 360 Shots 25 | . . . . 2 1 4 . . . . . 4 . 2 . 12 Rammed 17 | . 1 . . 3 2 . 1 . . . . . 4 . 1 5 Targets Rammed 20 | . 1 . . 3 2 . 2 . 1 . . . 5 . 1 5 Kicked . | . . . . . . . . . . . . . . . . . Crushed 3 | . . . . . . . 1 . 1 . . . 1 . . . Highest Temperature 415 | . 99 72 . 84 321 314 253 281 . 100 242 325 415 356 . 219 Average Temperature 82 | . 21 32 . 31 90 82 92 75 . 42 100 110 110 115 . 66 Received Heat Transfer 3333 | . 99 78 . 60 522 585 54 153 18 57 . 175 130 191 . 1211 Effects 5 | . . . . . 2 . . . . . . . . 3 . . Shutdowns 1 | . . . . . 1 . . . . . . . . . . . Energy Bleed 2 | . . . . . 1 . . . . . . . . 1 . . Interference 2 | . . . . . . . . . . . . . . 2 . . Siege Activations 4 | . . . . . . . . . . . . . . 4 . . Total Turns 70 | . . . . . . . . . . . . . . 70 . . Longest Duration 22 | . . . . . . . . . . . . . . 22 . . Robots Corrupted 6 | . . . . . 1 . . . . . . . . . . 5 Combat Hostiles 6 | . . . . . 1 . . . . . . . . . . 5 Parts Fried 7 | . . . . . 4 . . . . . . . . . . 3 Impact Corruptions . | . . . . . . . . . . . . . . . . . Robots Melted . | . . . . . . . . . . . . . . . . . Combat Hostiles . | . . . . . . . . . . . . . . . . . Parts Melted 4 | . 1 . . . 1 1 . . . . . . . 1 . . Heat Transferred 3837 | . 1517 518 . 259 1173 . . . . . . . . 320 . 50 Parts Sabotaged 1 | . . . . . . . . . . . . . . . . 1 Parts Stolen . | . . . . . . . . . . . . . . . . . Parts Stripped . | . . . . . . . . . . . . . . . . . Power Chain Reactions 2 | . . . . . 1 . . . . . . . . . . 1 Missiles Intercepted . | . . . . . . . . . . . . . . . . . Alert | -11 -10 -10 -10 -9 -8 -8 -8 -8 -7 -7 -7 -7 -7 -7 -6 -6 ------- Run | Jun Mat Min Exi Min Mat Gar Mat Gar Fac Gar Fac Gar Fac Gar Fac Gar Peak Influence 1521 | . 278 161 . 68 304 1521 829 1057 620 691 442 1184 748 1185 635 1445 Initial 741 | . . 76 . . 26 16 741 383 554 308 343 198 611 509 621 444 Average 530 | . 146 97 . 34 164 738 508 780 520 463 331 629 499 946 631 1100 Maximum Alert Level 4 | . 1 . . . 1 4 3 3 2 2 2 4 3 4 2 4 Low Security (%) 22 | 100 86 100 . 100 64 12 . . . . . 3 . . . . Level 1 18 | . 13 . . . 35 5 18 5 . 39 87 22 38 . . . Level 2 31 | . . . . . . 30 68 28 100 60 12 38 50 15 100 5 Level 3 18 | . . . . . . 28 12 65 . . . 30 11 49 . 41 Level 4 9 | . . . . . . 23 . . . . . 4 . 34 . 52 Level 5 . | . . . . . . . . . . . . . . . . . High Security . | . . . . . . . . . . . . . . . . . Max Security . | . . . . . . . . . . . . . . . . . Squads Dispatched 8 | . 2 . . . . . 1 . 1 . . . 4 . . . Investigation 1 | . . . . . . . . . . . . . 1 . . . Extermination 1 | . . . . . . . . . . . . . 1 . . . Reinforcement 5 | . 2 . . . . . 1 . . . . . 2 . . . Assault 1 | . . . . . . . . . 1 . . . . . . . Garrison . | . . . . . . . . . . . . . . . . . Intercept . | . . . . . . . . . . . . . . . . . Searches Triggered . | . . . . . . . . . . . . . . . . . Construction Impeded 1 | . . . . . . . . . . . . . 1 . . . Haulers Reinforced . | . . . . . . . . . . . . . . . . . Active Scanning Responses . | . . . . . . . . . . . . . . . . . Cargo Convoy Interrupts . | . . . . . . . . . . . . . . . . . Stealth | -11 -10 -10 -10 -9 -8 -8 -8 -8 -7 -7 -7 -7 -7 -7 -6 -6 --------- Run | Jun Mat Min Exi Min Mat Gar Mat Gar Fac Gar Fac Gar Fac Gar Fac Gar Distress Signals 15 | . 2 . . 1 4 3 3 . . . . . 2 . . . Communications Jammed 1 | . . . . . . . . . . . 1 . . . . . Distress Signals . | . . . . . . . . . . . . . . . . . Times Spotted 380 | . 22 6 . 9 34 41 21 23 5 16 3 35 31 24 . 110 Peak Tracking Total 27 | . 5 3 . 4 5 6 4 5 3 4 1 5 4 6 . 27 Tactical Retreats 20 | . 1 1 . 1 4 2 . . . 1 1 2 . 3 . 4 Traps | -11 -10 -10 -10 -9 -8 -8 -8 -8 -7 -7 -7 -7 -7 -7 -6 -6 ------- Run | Jun Mat Min Exi Min Mat Gar Mat Gar Fac Gar Fac Gar Fac Gar Fac Gar Traps Triggered 14 | . . . . . . 1 1 . 2 1 . 2 1 4 . 2 Indirectly . | . . . . . . . . . . . . . . . . . Trap Hack Attempts . | . . . . . . . . . . . . . . . . . Triggered . | . . . . . . . . . . . . . . . . . Disarmed . | . . . . . . . . . . . . . . . . . Reprogrammed . | . . . . . . . . . . . . . . . . . Reused . | . . . . . . . . . . . . . . . . . Traps Extracted . | . . . . . . . . . . . . . . . . . Installed . | . . . . . . . . . . . . . . . . . Triggered . | . . . . . . . . . . . . . . . . . Machines | -11 -10 -10 -10 -9 -8 -8 -8 -8 -7 -7 -7 -7 -7 -7 -6 -6 ---------- Run | Jun Mat Min Exi Min Mat Gar Mat Gar Fac Gar Fac Gar Fac Gar Fac Gar Machines Disabled 34 | . . . . . 1 2 2 2 . 7 1 2 11 3 . 3 Max in Single Turn 4 | . . . . . 1 1 1 1 . 1 1 1 4 1 . 1 Garrison Relay 14 | . . . . . . 2 . 2 . 4 . 2 . 2 . 2 Machines Repaired . | . . . . . . . . . . . . . . . . . Machines Sabotaged . | . . . . . . . . . . . . . . . . . Overloaded Fab Kills . | . . . . . . . . . . . . . . . . . Hacking | -11 -10 -10 -10 -9 -8 -8 -8 -8 -7 -7 -7 -7 -7 -7 -6 -6 --------- Run | Jun Mat Min Exi Min Mat Gar Mat Gar Fac Gar Fac Gar Fac Gar Fac Gar Machines Accessed 40 | . 3 . 2 . 8 2 5 1 1 1 3 3 5 2 4 . Terminals 28 | . 3 . . . 5 2 4 1 . 1 2 3 3 2 2 . Fabricators . | . . . . . . . . . . . . . . . . . Repair Stations 3 | . . . . . 1 . . . . . . . 1 . 1 . Recycling Units 1 | . . . . . 1 . . . . . . . . . . . Scanalyzers . | . . . . . . . . . . . . . . . . . Garrison Access 6 | . . . . . 1 . 1 . 1 . 1 . 1 . 1 . Total Hacks 83 | . 12 . 2 . 15 4 11 2 1 2 5 5 12 5 7 . Successful 38 | . 4 . 2 . 9 1 5 . 1 2 2 2 5 1 4 . Failed 44 | . 7 . . . 6 3 6 2 . . 3 3 7 4 3 . Catastrophic 12 | . 1 . . . 2 1 2 1 . . . 1 2 2 . . Database Lockouts 1 | . 1 . . . . . . . . . . . . . . . Manual 38 | . 13 . 1 . 10 1 8 . . 1 . . 4 . . . Terminals 64 | . 12 . . . 10 4 10 2 . 2 4 5 7 5 3 . Fabricators . | . . . . . . . . . . . . . . . . . Repair Stations 8 | . . . . . 2 . . . . . . . 4 . 2 . Recycling Units 2 | . . . . . 2 . . . . . . . . . . . Scanalyzers . | . . . . . . . . . . . . . . . . . Garrison Access 7 | . . . . . 1 . 1 . 1 . 1 . 1 . 2 . Terminal Hacks 24 | . 4 . 2 . 4 1 4 . . 2 1 2 2 1 1 . Record 1 | . . . 1 . . . . . . . . . . . . . Robot Analysis 4 | . 4 . . . . . . . . . . . . . . . Open Door 1 | . . . . . . . . . . . . . . 1 . . Emergency Access Points 2 | . . . . . . 1 . . . 1 . . . . . . Terminal Index 1 | . . . . . . . . . . . 1 . . . . . Unreport Threat 6 | . . . . . 1 . 3 . . . . . 2 . . . Hauler Manifests 3 | . . . . . 1 . 1 . . . . . . . 1 . Zone Layout 2 | . . . . . 2 . . . . . . . . . . . Garrison Registry 2 | . . . . . . . . . . 1 . 1 . . . . Patrol Navigation 1 | . . . . . . . . . . . . 1 . . . . EX-Prototype ID Bank 1 | . . . 1 . . . . . . . . . . . . . Fabricator Hacks . | . . . . . . . . . . . . . . . . . Repair Station Hacks 5 | . . . . . 2 . . . . . . . 2 . 1 . Scan Component 3 | . . . . . 1 . . . . . . . 1 . 1 . Repair 2 | . . . . . 1 . . . . . . . 1 . . . Recycling Unit Hacks . | . . . . . . . . . . . . . . . . . Scanalyzer . | . . . . . . . . . . . . . . . . . Garrison Access Hacks 7 | . . . . . 1 . 1 . 1 . 1 . 1 . 2 . Unlock Access 6 | . . . . . 1 . 1 . 1 . 1 . 1 . 1 . Coupler Status 1 | . . . . . . . . . . . . . . . 1 . Unauthorized Hacks 2 | . . . . . 2 . . . . . . . . . . . Terminals . | . . . . . . . . . . . . . . . . . Fabricators . | . . . . . . . . . . . . . . . . . Repair Stations . | . . . . . . . . . . . . . . . . . Recycling Units 2 | . . . . . 2 . . . . . . . . . . . Reject 1 | . . . . . 1 . . . . . . . . . . . Mask 1 | . . . . . 1 . . . . . . . . . . . Scanalyzers . | . . . . . . . . . . . . . . . . . Garrison Access . | . . . . . . . . . . . . . . . . . Data Cores Recovered . | . . . . . . . . . . . . . . . . . Used . | . . . . . . . . . . . . . . . . . Hacking Detections 33 | . 2 . . . 7 2 4 1 . 1 3 3 5 2 3 . Full Trace Events 4 | . . . . . . 1 . 1 . . . 1 . 1 . . Feedback Events . | . . . . . . . . . . . . . . . . . Feedback Blocked . | . . . . . . . . . . . . . . . . . Robot Schematics Acquired . | . . . . . . . . . . . . . . . . . Robots Built . | . . . . . . . . . . . . . . . . . Authchips . | . . . . . . . . . . . . . . . . . Time . | . . . . . . . . . . . . . . . . . Total Robot Build Rating . | . . . . . . . . . . . . . . . . . Part Schematics Acquired . | . . . . . . . . . . . . . . . . . Parts Built . | . . . . . . . . . . . . . . . . . Authchips . | . . . . . . . . . . . . . . . . . Time . | . . . . . . . . . . . . . . . . . Total Part Build Rating . | . . . . . . . . . . . . . . . . . Parts Repaired 2 | . . . . . 1 . . . . . . . 1 . . . Time 82 | . . . . . 26 . . . . . . . 56 . . . Parts Recycled . | . . . . . . . . . . . . . . . . . Recycled Matter . | . . . . . . . . . . . . . . . . . Retrieved Matter . | . . . . . . . . . . . . . . . . . Retrieved Components . | . . . . . . . . . . . . . . . . . Parts Scanalyzed . | . . . . . . . . . . . . . . . . . Part Schematics Acquired . | . . . . . . . . . . . . . . . . . Parts Damaged . | . . . . . . . . . . . . . . . . . Bothacking | -11 -10 -10 -10 -9 -8 -8 -8 -8 -7 -7 -7 -7 -7 -7 -6 -6 ------------ Run | Jun Mat Min Exi Min Mat Gar Mat Gar Fac Gar Fac Gar Fac Gar Fac Gar Used RIF Installer 5 | . . . . . . 1 . 1 . 1 . 1 . 1 . . Command Fork 3 | . . . . . . . . 1 . 1 . 1 . . . . Robot Detection 1 | . . . . . . . . . . . . . . 1 . . Robots Hacked 28 | . . . . . . . . 5 2 7 1 4 3 2 . 4 Non-combat 4 | . . . . . . . . . . 1 1 . 2 . . . Combat 24 | . . . . . . . . 5 2 6 . 4 1 2 . 4 Robot Hacks Applied 34 | . . . . . . . . 5 2 10 1 5 3 2 . 6 drop_inventory 2 | . . . . . . . . . . . 1 . 1 . . . purge_threat 3 | . . . . . . . . . . 3 . . . . . . map_route 1 | . . . . . . . . . . . . . 1 . . . scatter_targeting 1 | . . . . . . . . . . . . 1 . . . . amplify_resonance 2 | . . . . . . . . . . 1 . . . . . 1 disable_weapons 1 | . . . . . . . . . . . . . . . . 1 reboot_system 5 | . . . . . . . . . 1 2 . . . . . 2 overwrite_iff 6 | . . . . . . . . 1 . 2 . 1 . . . 2 formatsys_high 13 | . . . . . . . . 4 1 2 . 3 1 2 . . Relay Couplers Released 64 | . . . . . . 6 . 10 . 17 3 6 4 9 . 9 Machine Destruction 57 | . . . . . . 6 . 10 . 17 . 6 . 9 . 9 Programmers 7 | . . . . . . . . . . . 3 . 4 . . . Attached 18 | . . . . . . . . 4 1 3 1 2 2 2 1 2 Fabnet Peak Effective % . | . . . . . . . . . . . . . . . . . Robots Rewired 9 | . . . . . . 6 . . . . . 1 . . . 2 Allies Hacked . | . . . . . . . . . . . . . . . . . Hacks Repelled . | . . . . . . . . . . . . . . . . . Allies | -11 -10 -10 -10 -9 -8 -8 -8 -8 -7 -7 -7 -7 -7 -7 -6 -6 -------- Run | Jun Mat Min Exi Min Mat Gar Mat Gar Fac Gar Fac Gar Fac Gar Fac Gar Total Allies 36 | . . . . . . 6 . 5 1 4 . 8 1 5 . 6 Largest Group 4 | . . . . . . 3 3 4 2 2 . 3 1 2 . 4 Highest-Rated Group 111 | . . . . . . 50 72 67 36 48 . 83 21 78 . 111 Highest-Rated Ally 39 | . . . . . . 24 24 24 32 32 . 32 21 39 . 29 Total Orders . | . . . . . . . . . . . . . . . . . Ally Attacks 228 | . . . . . . 15 58 42 3 24 . 30 7 21 . 28 Total Damage 4723 | . . . . . . 328 1418 813 111 636 . 391 138 382 . 506 Kills 53 | . . . . . . 4 18 10 1 6 . 2 1 5 . 6 Allies Corrupted . | . . . . . . . . . . . . . . . . . Allies Melted . | . . . . . . . . . . . . . . . . . Intel | -11 -10 -10 -10 -9 -8 -8 -8 -8 -7 -7 -7 -7 -7 -7 -6 -6 ------- Run | Jun Mat Min Exi Min Mat Gar Mat Gar Fac Gar Fac Gar Fac Gar Fac Gar Robot Analysis Total 4 | . 4 . . . . . . . . . . . . . . . Derelict Logs Recovered 3 | . . 2 . 1 . . . . . . . . . . . . Drone Launches . | . . . . . . . . . . . . . . . . . Drone Recoveries . | . . . . . . . . . . . . . . . . . Exploration | -11 -10 -10 -10 -9 -8 -8 -8 -8 -7 -7 -7 -7 -7 -7 -6 -6 ------------- Run | Jun Mat Min Exi Min Mat Gar Mat Gar Fac Gar Fac Gar Fac Gar Fac Gar Turns Passed 17563 | 84 799 793 906 712 1653 2486 1380 1027 605 1315 635 1420 1401 949 344 1054 Spaces Moved 7692 | 48 383 464 439 263 618 1172 754 489 238 485 238 489 605 399 196 412 Core 3 | 3 . . . . . . . . . . . . . . . . Treads 6603 | 45 383 464 439 263 618 1172 754 489 238 485 238 489 369 67 31 59 Legs . | . . . . . . . . . . . . . . . . . Wheels 1086 | . . . . . . . . . . . . . 236 332 165 353 Hover . | . . . . . . . . . . . . . . . . . Flight . | . . . . . . . . . . . . . . . . . Fastest Speed 50 | 50 160 160 160 240 162 160 160 160 160 228 228 228 160 145 160 145 Average Speed 188 | 153 160 160 205 240 195 176 164 160 221 228 228 229 205 176 172 166 Slowest Speed 410 | 160 160 160 240 240 410 240 240 160 240 228 228 230 230 240 240 240 Overloaded Moves . | . . . . . . . . . . . . . . . . . Propulsion Burnouts . | . . . . . . . . . . . . . . . . . Robots Hopped . | . . . . . . . . . . . . . . . . . Cave-ins Triggered . | . . . . . . . . . . . . . . . . . Exploration Rate (%) 49 | 4 82 94 70 56 62 88 70 65 8 56 6 60 22 53 6 42 Regions Visited 16 Branch Regions 3 Pre-discovered Areas 4 | . . 2 1 1 . . . . . . . . . . . . Known Exits Taken 6 | . . . . . 1 . 1 . 1 . 1 . 1 . 1 . Unknown Exits Taken 5 | 1 1 1 1 1 . . . . . . . . . . . . Scrap Searched 2 | . . 1 . 1 . . . . . . . . . . . . Spaces Dug 267 | . . . . . 7 38 3 12 . 18 . 49 15 67 . 58 Terrain Destroyed 788 | . . . . 8 13 70 5 24 . 33 4 101 62 98 . 370 Melee 46 | . . . . . 7 14 3 8 . 4 . 5 1 1 . 3 Projectile 75 | . . . . . . 1 1 . . 3 4 21 39 6 . . AOE 666 | . . . . 8 6 55 . 16 . 26 . 75 22 91 . 367 Terrain Rammed . | . . . . . . . . . . . . . . . . . Walls Destroyed . | . . . . . . . . . . . . . . . . . Machines Disabled . | . . . . . . . . . . . . . . . . . Actions | -11 -10 -10 -10 -9 -8 -8 -8 -8 -7 -7 -7 -7 -7 -7 -6 -6 --------- Run | Jun Mat Min Exi Min Mat Gar Mat Gar Fac Gar Fac Gar Fac Gar Fac Gar Total 9629 | 55 455 485 446 320 917 1370 847 647 292 641 313 676 738 587 200 640 Wait 557 | . 10 5 . 35 141 19 34 54 15 29 21 30 58 60 . 46 Move 7682 | 47 382 463 438 262 618 1171 754 488 238 484 238 488 605 398 196 412 Hop . | . . . . . . . . . . . . . . . . . Pick Up 106 | 1 4 2 5 3 17 11 3 7 3 15 10 4 4 7 2 8 Fast Attach 58 | 6 . . 1 . 7 1 4 7 1 5 3 11 5 4 . 3 Attach 110 | . . . . 4 6 5 1 3 3 11 6 13 15 25 1 17 Detach 77 | . . . 1 . 1 3 . 3 1 10 5 13 14 23 . 3 Swap 135 | 1 . . . 1 16 21 13 20 11 19 1 11 4 2 . 15 Drop 107 | . . . 1 . 13 12 10 10 3 20 11 13 8 4 . 2 Fire 612 | . 58 15 . 12 87 95 17 38 10 29 16 71 15 45 . 104 Melee 141 | . . . . . 9 32 9 17 4 17 2 18 5 8 . 20 Ram 1 | . . . . . . . . . . . . . . . . 1 Kick . | . . . . . . . . . . . . . . . . . Crush 19 | . 1 . . 3 2 . 2 . 1 . . . 5 . 1 4 Escape Stasis 24 | . . . . . . . . . 2 2 . 4 . 11 . 5 Rewire . | . . . . . . . . . . . . . . . . . Trap . | . . . . . . . . . . . . . . . . . Miscellaneous . | . . . . . . . . . . . . . . . . . Route ------- -11/Junkyard -10/Materials (discovered 4 exits: [*Mat x3] / [*Min]) -10/Mines (discovered 3 exits: [*Mat x2] / *Exi) -10/Exiles -9/Mines -8/Materials -8/Garrison (discovered 4 exits: *Fac x3 / *Mat) -8/Materials (discovered 2 exits: *Fac / Gar) -8/Garrison (discovered 2 exits: *Fac x2) -7/Factory -7/Garrison (discovered 3 exits: *Fac x3) -7/Factory -7/Garrison (discovered 4 exits: *Fac x3 / *Fac) -7/Factory (discovered 3 exits: *Fac / [*Low] / Gar) -7/Garrison (discovered 2 exits: *Fac x2) -6/Factory (discovered 2 exits: [*Fac] / Gar) -6/Garrison (discovered 1 exit: [*Fac]) History --------- Turn | Location | Event 2 | -11/Junkyard | Met Revision 17 11 | -11/Junkyard | Discovered new exit (range 16) 85 | -11/Junkyard | Entered Materials 277 | -10/Materials | Central database locked down 280 | -10/Materials | Discovered new exit (range 8) 314 | -10/Materials | Build established: Mutant 439 | -10/Materials | Discovered new exit (range 14) 571 | -10/Materials | Discovered new exit (range 14) 698 | -10/Materials | Discovered new exit (range 16) 884 | -10/Materials | Entered Mines 928 | -10/Mines | Learned Materials terminal intel 966 | -10/Mines | Found a damaged Exp. Sensor Array with a note attached 969 | -10/Mines | Found Prototype Device 1098 | -10/Mines | Discovered new exit (range 11) 1162 | -10/Mines | Deemed a non-threat by the Exiles lab entrance 1237 | -10/Mines | Discovered new exit (range 8) 1396 | -10/Mines | Learned location of Storage (-9) 1671 | -10/Mines | Discovered new exit (range 5) 1677 | -10/Mines | Entered Exiles 1714 | -10/Exiles | Met 8R-AWN 1743 | -10/Exiles | Met EX-HEX 1820 | -10/Exiles | Met EX-DEC 1849 | -10/Exiles | Learned location of Zion (-6) 1882 | -10/Exiles | Met EX-BIN 2260 | -10/Exiles | Aligned with FarCom system 2263 | -10/Exiles | Given EX-Vault access code 2323 | -10/Exiles | Opened EX-Vault 2342 | -10/Exiles | Found Chronowheel 2345 | -10/Exiles | Found Gui. Plasma Cannon 2354 | -10/Exiles | Found AWS/Gauss 2405 | -10/Exiles | Warned to stay clear of 0b10 Research branches 2423 | -10/Exiles | Exiles lab attacked by MAIN.C 2551 | -10/Exiles | Discovered new exit (range 14) 2583 | -10/Exiles | Stole three prototypes: Chronowheel, Gui. Plasma Cannon, AWS/Gauss 2583 | -10/Exiles | Entered Mines 2588 | -9/Mines | Core integrity fell below 50% 2874 | -9/Mines | Assembled infested the area 2879 | -9/Mines | Assisted by a Guerilla fighting off Assembled 3264 | -9/Mines | Lost 4 parts (2n2w) 3266 | -9/Mines | Discovered new exit (range 13) 3295 | -9/Mines | Entered Materials 3295 | -8/Materials | Evolved 4 slots: Propulsion x2, Utility x2 3296 | -8/Materials | Loaded intel: 12 terminal locations 3298 | -8/Materials | Identified Exp. Sensor Array 3801 | -8/Materials | Build established: Scavenger-Mutant 4192 | -8/Materials | Build established: Mutant 4628 | -8/Materials | Build established: Scavenger-Mutant 4701 | -8/Materials | Repaired Lgt. Armor Plating 4948 | -8/Materials | Identified exit to Garrison 4948 | -8/Materials | Entered Garrison 4983 | -8/Garrison | Triggered checkpoint 5156 | -8/Garrison | Discovered new exit (range 14) 5226 | -8/Garrison | Triggered checkpoint 5251 | -8/Garrison | Garrison Relay disabled 5388 | -8/Garrison | Build established: Mutant 5480 | -8/Garrison | Garrison Relay disabled 5590 | -8/Garrison | Discovered new exit (range 13) 5732 | -8/Garrison | Triggered checkpoint 5768 | -8/Garrison | Triggered checkpoint 6257 | -8/Garrison | Discovered new exit (range 3) 6288 | -8/Garrison | Triggered checkpoint 6416 | -8/Garrison | Triggered checkpoint 6445 | -8/Garrison | Discovered new exit (range 5) 6628 | -8/Garrison | Triggered checkpoint 6776 | -8/Garrison | Triggered checkpoint 6920 | -8/Garrison | Triggered checkpoint 7144 | -8/Garrison | Triggered checkpoint 7175 | -8/Garrison | Installed Relay Interface Framework 7434 | -8/Garrison | Entered Materials 7434 | -8/Materials | Accompanied by 3 allies 7477 | -8/Materials | Build established: Bothacker-Mutant 7831 | -8/Materials | Build established: Scavenger-Mutant 8683 | -8/Materials | Discovered new exit (range 10) 8814 | -8/Materials | Identified exit to Garrison 8814 | -8/Materials | Entered Garrison 8814 | -8/Garrison | Accompanied by 1 ally 8848 | -8/Garrison | Triggered checkpoint 8915 | -8/Garrison | Garrison Relay disabled 9013 | -8/Garrison | Triggered checkpoint 9166 | -8/Garrison | Triggered checkpoint 9185 | -8/Garrison | Garrison Relay disabled 9270 | -8/Garrison | Discovered new exit (range 15) 9486 | -8/Garrison | Core integrity fell below 50% 9526 | -8/Garrison | Triggered checkpoint 9629 | -8/Garrison | Triggered checkpoint 9705 | -8/Garrison | Expanded RIF knowledge: Command Fork 9819 | -8/Garrison | Discovered new exit (range 15) 9841 | -8/Garrison | Entered Factory 9841 | -7/Factory | Accompanied by 2 allies 9841 | -7/Factory | Evolved 2 slots: Utility x2 9843 | -7/Factory | FarCom data flow suspended 9999 | -7/Factory | Build established: Bothacker-Mutant 10241 | -7/Factory | First assault squad dispatched 10446 | -7/Factory | Identified exit to Garrison 10446 | -7/Factory | Entered Garrison 10446 | -7/Garrison | Accompanied by 1 ally 10495 | -7/Garrison | Discovered new exit (range 36) 10495 | -7/Garrison | Discovered new exit (range 61) 10495 | -7/Garrison | Discovered new exit (range 57) 10523 | -7/Garrison | Garrison Relay disabled 10708 | -7/Garrison | Garrison Relay disabled 10872 | -7/Garrison | Triggered checkpoint 10884 | -7/Garrison | Triggered checkpoint 11048 | -7/Garrison | H-XX Assembler disabled 11267 | -7/Garrison | Triggered checkpoint 11382 | -7/Garrison | Expanded RIF knowledge: Command Fork 11515 | -7/Garrison | Garrison Relay disabled 11540 | -7/Garrison | Triggered checkpoint 11608 | -7/Garrison | Triggered checkpoint 11678 | -7/Garrison | Garrison Relay disabled 11761 | -7/Garrison | Entered Factory 12396 | -7/Factory | Identified exit to Garrison 12396 | -7/Factory | Entered Garrison 12442 | -7/Garrison | Discovered new exit (range 57) 12442 | -7/Garrison | Discovered new exit (range 70) 12442 | -7/Garrison | Discovered new exit (range 59) 12442 | -7/Garrison | Discovered new exit (range 80) 12505 | -7/Garrison | Garrison Relay disabled 12700 | -7/Garrison | Triggered checkpoint 12739 | -7/Garrison | Triggered checkpoint 12937 | -7/Garrison | Rescued a captive Derelict 12939 | -7/Garrison | Rescued a captive Derelict 12958 | -7/Garrison | Triggered checkpoint 13056 | -7/Garrison | Garrison Relay disabled 13186 | -7/Garrison | Triggered checkpoint 13366 | -7/Garrison | Triggered checkpoint 13473 | -7/Garrison | Expanded RIF knowledge: Command Fork 13744 | -7/Garrison | Triggered checkpoint 13816 | -7/Garrison | Entered Factory 14067 | -7/Factory | Repaired Lyr. Heavy Armor Plating 14385 | -7/Factory | Discovered new exit (range 5) 15141 | -7/Factory | Discovered new exit (range 5) 15217 | -7/Factory | Identified exit to Garrison 15217 | -7/Factory | Entered Garrison 15260 | -7/Garrison | Rescued a captive Derelict 15262 | -7/Garrison | Rescued a captive Derelict 15276 | -7/Garrison | Triggered checkpoint 15334 | -7/Garrison | Build established: Mutant 15360 | -7/Garrison | Garrison Relay disabled 15588 | -7/Garrison | Triggered checkpoint 15667 | -7/Garrison | Build established: Bothacker-Mutant 15721 | -7/Garrison | Discovered new exit (range 12) 15732 | -7/Garrison | Expanded RIF knowledge: Robot Detection 15778 | -7/Garrison | Triggered checkpoint 15789 | -7/Garrison | Heavy support dispatched to Factory 15871 | -7/Garrison | Heavy support dispatched to Factory 16107 | -7/Garrison | Discovered new exit (range 10) 16109 | -7/Garrison | Heavy support dispatched to Factory 16144 | -7/Garrison | Build established: Botlord-Mutant 16166 | -7/Garrison | Entered Factory 16166 | -6/Factory | Evolved 2 slots: Utility x2 16267 | -6/Factory | Discovered new exit (range 4) 16510 | -6/Factory | Identified exit to Garrison 16510 | -6/Factory | Entered Garrison 16560 | -6/Garrison | Triggered checkpoint 16590 | -6/Garrison | Destroyed 8 combat bots 16601 | -6/Garrison | Spotted B-86 Titan 16668 | -6/Garrison | Triggered checkpoint 16673 | -6/Garrison | Triggered checkpoint 16675 | -6/Garrison | Triggered checkpoint 16714 | -6/Garrison | Triggered checkpoint 16773 | -6/Garrison | Destroyed 10 combat bots 16858 | -6/Garrison | Discovered new exit (range 10) 16954 | -6/Garrison | Triggered checkpoint 16964 | -6/Garrison | Assembled breached garrison interior 17046 | -6/Garrison | Garrison Relay disabled 17294 | -6/Garrison | System corruption reached 10% 17542 | -6/Garrison | Core integrity fell below 50% 17552 | -6/Garrison | Activated Chronowheel 17553 | -6/Garrison | Destroyed 37 combat bots 17560 | -6/Garrison | Core integrity fell below 20% 17564 | -6/Garrison | Destroyed by as-28242 with Assembled Blade Last Messages --------------- 17536_ Arm. Huge Wheel destroyed. 17538_ Adv. Treads destroyed. 17543_ The unstable cave ceiling collapses. 17545_ Axe destroyed. 17546_ Slammed into as-68060. 17550_ Relay Coupler [Hunter] destroyed. 17551_ Proton Cannon destroyed. 17552_ Spacetime feels off. 17553_ System corrupted: Matter fused (-9). 17554_ Slammed into as-68060. 17555_ Adv. Treads destroyed. 17556_ Slammed into as-84423. 17557_ Imp. Medium Treads destroyed. 17557_ Adv. Heat Sink destroyed. 17560_ Relay Coupler [NC] destroyed. 17561_ Slammed into as-77768. 17562_ Chronowheel is disintegrating... 17563_ Adv. Targeting Computer destroyed. 17563_ Chronowheel destroyed. 17563_ Spacetime feels normal again. Map ----- +----------------------------------------------------+ | ### #?????????????????# ########????????????????? | | # # ##??????#?????##### #"" "#????????????????? | | # ###??## ?#??## ## ! ##?????????? ?????? | | #??# # # # ### ######## ??? | | # #??# ??? | | ## [ = = ??? | | # #??##= ### # # = ##########"" "???? | | #??# ?# ##### ### [#?????????????????? | | #??? #?#?????# #######?????????????????? | | # #???# #???????# #???????????????????????? | | ####### ##??????# #???????????????????????? | | ## # #??????# #???????????????????????? | | # # #??????# #???????????????????????? | | ######## #???????????????????????? | | [ #???????????????????????? | | ! = #???????????????????????? | | # ## #########???????????????????????? | | # ## ###???????????????????????????????? | | % ![ ###### #????????????????????????? | | #????????????????????????? | | #######?????????????????????????? | | #####???????????????????????????? | | # ## / ##### ####????????????????????????? | | # ## ! # a a aa###??????????????????????? | | # [ % aaaaaa###????????????????????? | | # = a aaaa@aa#????????????????????? | | # # a #aaa####????????????????????? | | ## ## # # #aa# #??????????????????????? | | ?# ?# ## #a ###??????????????????????? | | ?# ??####### ##### #???????????????????????? | | ?# ????????# #???# ## #??????????????????????? | | ???????????## ?? a#?# ###??????????????????????? | | ???????????# #?###??# ##????????????????????????? | | ????????????###??????# #?????????????????????????? | | ???????????? #??????# #?????????????????????????? | | ???????????? ?????? ##?????????????????????????? | | ???????????? ??????? ???????????????????????????? | | ????????????##???????#???????????????????????????? | | ?????????????????????????????????????????????????? | | ?????????????????????????????????????????????????? | | ?????????????????????????????????????????????????? | | ?????????????????????????????????????????????????? | | ?????????????????????????????????????????????????? | | ?????????????????????????????????????????????????? | | ?????????????????????????????????????????????????? | | ?????????????????????????????????????????????????? | | ?????????????????????????????????????????????????? | | ?????????????????????????????????????????????????? | | ?????????????????????????????????????????????????? | | ?????????????????????????????????????????????????? | +----------------------------------------------------+ Best States ------------- Heat Dissipation 56 Energy Generation 21 Energy Capacity 325 Matter Stores 400 Matter Capacity 400 Sight Range 16 Robot Scan Range 15 Terrain Scan Density 10 Jamming Range 16 Armor Coverage 1200 Evasion (%) 40 Targeting Accuracy 8 Recoil Reduction 4 Salvage Targeting 1 Offensive Hacking 20 Relay Coupler Types 3 Relay Coupler Value 54 Item Schematics ----------------- None Robot Schematics ------------------ None Fabricated ------------ Nothing Alien Tech Used ----------------- None Achievements -------------- None Challenges ------------ None Game ------ Seed SingularityLegRifle Manual? 0 Play Time 02:18:41 Cumulative 391.2 hours Start 2023.04.01 @ 16:04:28 End 2023.04.01 @ 21:57:23 Sessions 3 Manual Loads 0 Difficulty Rogue Special Mode None Game No. 473 Rogue 386 Adventurer 87 Explorer 0 Win Type - Total 19 Types 7/0/10/1/1/0/0/0/0 Lore% 88 Gallery% 91 Achievement% 73 Wizard Run 0 Options --------- ASCII 0 Keyboard 1 Movement Numpad Keybinds 0 Fullscreen 1 Font 18/SmallcapsGlow Map View 76x50 Tactical HUD 1 Map Filters NONE Filters NONE Steam 1 RUN: 9dab5684-2aeb-4dbf-9e24-d44c80528f00